Cogmind - Beta 9.6 @@@ ROGUE MODE // 2020.05.18 @ 08:56:44 Player: Vectis Result: Self-destructed Performance ------------- Evolutions (0) 0 Regions Visited (4) 800 Robots Destroyed (27) 135 Value Destroyed (565) 565 Prototype IDs (22) 440 Alien Tech Used (0) 0 Bonus (300) 300 TOTAL SCORE: 2240 Bonus ------- Aligned with FarCom 300 Cogmind --------- Core Integrity 155/250 Matter 300/300 Energy 160/160 System Corruption 0% Temperature Cool (0) Movement Walking (150) Ox1 Location -9/Mines Parts ------- > --- POWER (1) -------- Light Nuclear Core > --- PROPULSION (2) --- Aluminum Leg Aluminum Leg > --- UTILITY (2) ------ Improved Heat Sink Large Storage Unit > --- WEAPON (2) ------- YOLO Cannon > --- INVENTORY (10) --- Ion Engine Light Treads Light Treads Potential Leg Potential Leg High-capacity Matter Pod (200) Chronowheel Grenade Launcher Stasis Trap (100%) Stasis Trap (100%) Peak State ------------ > --- POWER ------------ Light Nuclear Core > --- PROPULSION ------- Aluminum Leg Potential Leg > --- UTILITY ---------- Improved Heat Sink Large Storage Unit > --- WEAPON ----------- YOLO Cannon > --- INVENTORY -------- Ion Engine Light Treads Light Treads Aluminum Leg High-capacity Matter Pod Grenade Launcher Stasis Trap Stasis Trap Stasis Trap [Rating: 39] Favorites ----------- Power Light Nuclear Core Engine Ion Engine Power Core Light Nuclear Core Propulsion Aluminum Leg Leg Aluminum Leg Wheel Compact Wheel Utility Large Storage Unit Device Improved Heat Sink Storage Large Storage Unit Weapon Light Assault Rifle Energy Gun Medium Laser Energy Cannon Beam Cannon Ballistic Gun Light Assault Rifle Build | -11 -10 -10 -10 -9 ------- Run | Scr Mat Min Exi Min Slots Evolved . | . . . . . Power . | . . . . . Propulsion . | . . . . . Utility . | . . . . . Weapon . | . . . . . Parts Attached 37 | 8 12 14 3 . Power 3 | 1 . 2 . . Engine 2 | 1 . 1 . . Core 1 | . . 1 . . Reactor . | . . . . . Propulsion 15 | 2 6 5 2 . Treads . | . . . . . Leg 6 | 2 . 2 2 . Wheel 9 | . 6 3 . . Hover . | . . . . . Flight . | . . . . . Utility 7 | 3 2 2 . . Device 4 | 1 1 2 . . Storage 3 | 2 1 . . . Processor . | . . . . . Hackware . | . . . . . Protection . | . . . . . Artifact . | . . . . . Weapon 12 | 2 4 5 1 . Energy Gun 4 | 2 . 2 . . Energy Cannon 4 | . 2 1 1 . Ballistic Gun 4 | . 2 2 . . Ballistic Cannon . | . . . . . Launcher . | . . . . . Special Weapon . | . . . . . Impact Weapon . | . . . . . Slashing Weapon . | . . . . . Piercing Weapon . | . . . . . Special Melee Weapon . | . . . . . Unidentified Prototypes . | . . . . . Parts Lost 8 | . 2 6 . . Power 1 | . . 1 . . Propulsion 2 | . 1 1 . . Utility . | . . . . . Weapon 5 | . 1 4 . . Highest Loss Streak 4 | . 2 4 . . Average Slot Usage (%) 96 | . 100 98 95 85 Engine 4 | . 14 5 . . Core 9 | . . 8 14 14 Leg 19 | . 13 5 28 28 Wheel 8 | . 14 21 . . Device 14 | . 14 14 14 14 Storage 14 | . 14 14 14 14 Energy Gun 11 | . 16 12 10 . Energy Cannon 6 | . 5 9 3 14 Ballistic Gun 7 | . 5 5 10 . Naked Turns . | . . . . . Heaviest Build 40 | 17 28 28 40 40 Greatest Support 32 | 20 32 32 20 20 Greatest Overweight (x) 1 | . 1 1 1 1 Average Overweight (x) . | . . . 1 1 Largest Inventory Capacity 10 | 8 10 10 10 10 Average Capacity 9 | 5 9 10 10 10 Most Carried 10 | 4 10 10 10 10 Average Carried 9 | 2 8 9 9 10 Final Capacity 10 | 6 10 10 10 10 Final Carried 10 | 4 10 10 10 10 Class Distribution -------------------- 60% | Scavenger-Mutant 39% | Mutant Dominant Class ---------------- Mutant | -10/Materials Scavenger-Mutant | -10/Mines Scavenger-Mutant | -10/Exiles Scavenger-Mutant | -9/Mines Resources | -11 -10 -10 -10 -9 ----------- Run | Scr Mat Min Exi Min Matter Collected 711 | 280 241 160 . 30 Remotely . | . . . . . Salvage Created 884 | 95 328 378 . 83 Parts 63 | 10 28 21 . 4 Haulers Intercepted 1 | . 1 . . . Recyclers Shooed 2 | 1 1 . . . Parts Field Recycled . | . . . . . Retrieved Matter . | . . . . . Parts Self-Destructed . | . . . . . Prevented . | . . . . . Kills | -11 -10 -10 -10 -9 ------- Run | Scr Mat Min Exi Min Combat Hostiles Destroyed 19 | . 8 8 . 3 Guns 14 | . 8 6 . . Cannons 3 | . . 2 . 1 AOE 2 | . . . . 2 Classes Destroyed 6 | 2 4 . . . Builder 1 | . 1 . . . Tunneler 3 | 2 . 1 . . Hauler 1 | . 1 . . . Recycler 3 | 1 1 1 . . Swarmer 8 | . 6 2 . . Grunt 11 | . 2 6 . 3 Best Kill Streak 4 | 3 4 3 . 3 Combat Bots Only 4 | . 4 2 . 3 Max Kills in Single Turn 2 | 1 1 1 . 2 Gunslinging . | . . . . . Exploded 1 | . . . . 1 Melee . | . . . . . Uniques/NPCs Destroyed . | . . . . . Combat | -11 -10 -10 -10 -9 -------- Run | Scr Mat Min Exi Min Damage Taken 791 | . 233 538 . 20 Core 95 | . 35 60 . . Absorbed by Shields . | . . . . . Core Remaining (%) 100 | 100 . . . . Volleys Fired 69 | 5 26 36 . 2 Largest 2 | 2 2 2 . 1 Hottest 125 | 100 120 125 . 100 Shots Fired 123 | 10 52 59 . 2 Gun 92 | 10 50 32 . . Cannon 31 | . 2 27 . 2 Launcher . | . . . . . Special . | . . . . . Kinetic 41 | . 27 14 . . Thermal 82 | 10 25 45 . 2 Explosive . | . . . . . Electromagnetic . | . . . . . Robot Hit Streak 11 | 3 9 11 . 1 Robot Miss Streak 3 | 2 3 2 . 1 Penetration Max . | . . . . . Secondary Targets 1 | . 1 . . . Max Gunslinging Chain 1 | . 1 . . . Shots Hit Robots 71 | 5 30 35 . 1 Core Hits 42 | 4 17 18 . 3 Critical Hits . | . . . . . Critical Kills . | . . . . . Critical Parts Destroyed . | . . . . . Melee Attacks . | . . . . . Impact . | . . . . . Slashing . | . . . . . Piercing . | . . . . . Sneak Attacks . | . . . . . Combat Hostiles . | . . . . . Follow-up Attacks . | . . . . . Damage Inflicted 1385 | 76 345 496 . 468 Guns 672 | 76 310 286 . . Cannons 508 | . 35 210 . 263 Explosions 205 | . . . . 205 Melee . | . . . . . Ramming . | . . . . . Kinetic 263 | . 186 77 . . Thermal 1122 | 76 159 419 . 468 Explosive . | . . . . . Electromagnetic . | . . . . . Impact . | . . . . . Slashing . | . . . . . Piercing . | . . . . . Highest Corruption . | . . . . . Average Corruption . | . . . . . Corruption Purged . | . . . . . Overload Shots . | . . . . . Overflow Damage 94 | . . . . 94 Projectiles 94 | . . . . 94 Explosions . | . . . . . Melee . | . . . . . Knockbacks . | . . . . . Impact . | . . . . . Kinetic . | . . . . . Secondary . | . . . . . Self-Inflicted Damage . | . . . . . Shots . | . . . . . Rammed . | . . . . . Targets Rammed . | . . . . . Kicked . | . . . . . Crushed . | . . . . . Highest Temperature 335 | 78 273 335 . . Average Temperature 107 | 32 79 141 . . Received Heat Transfer 357 | . 54 291 . 12 Effects 2 | . . 2 . . Energy Bleed 1 | . . 1 . . Damage (minor) 1 | . . 1 . . Siege Activations . | . . . . . Robots Corrupted . | . . . . . Combat Hostiles . | . . . . . Parts Fried . | . . . . . Impact Corruptions . | . . . . . Robots Melted . | . . . . . Combat Hostiles . | . . . . . Parts Melted 4 | . . 3 . 1 Heat Transferred 1936 | 222 444 950 . 320 Parts Sabotaged . | . . . . . Parts Stolen . | . . . . . Parts Stripped . | . . . . . Power Chain Reactions . | . . . . . Missiles Intercepted . | . . . . . Alert | -11 -10 -10 -10 -9 ------- Run | Scr Mat Min Exi Min Peak Influence 227 | 15 227 160 . 70 Average Influence 66 | 6 63 88 . 66 Maximum Alert Level 1 | . 1 . . . Low Security (%) 97 | 100 95 100 . 100 Level 1 2 | . 4 . . . Level 2 . | . . . . . Level 3 . | . . . . . Level 4 . | . . . . . Level 5 . | . . . . . High Security . | . . . . . Max Security . | . . . . . Squads Dispatched 1 | . 1 . . . Investigation . | . . . . . Extermination . | . . . . . Reinforcement 1 | . 1 . . . Assault . | . . . . . Garrison . | . . . . . Intercept . | . . . . . Construction Impeded . | . . . . . Haulers Reinforced . | . . . . . Stealth | -11 -10 -10 -10 -9 --------- Run | Scr Mat Min Exi Min Distress Signals . | . . . . . Communications Jammed . | . . . . . Distress Signals . | . . . . . Times Spotted 24 | . 12 9 . 3 Peak Tracking Total 3 | . 3 3 . 3 Tactical Retreats 2 | . 1 1 . . Traps | -11 -10 -10 -10 -9 ------- Run | Scr Mat Min Exi Min Traps Triggered . | . . . . . Indirectly . | . . . . . Trap Hack Attempts . | . . . . . Triggered . | . . . . . Disarmed . | . . . . . Reprogrammed . | . . . . . Reused . | . . . . . Traps Extracted . | . . . . . Installed . | . . . . . Triggered . | . . . . . Machines | -11 -10 -10 -10 -9 ---------- Run | Scr Mat Min Exi Min Machines Disabled . | . . . . . Max in Single Turn . | . . . . . Machines Sabotaged . | . . . . . Garrisons Compromised . | . . . . . Overloaded Fab Kills . | . . . . . Fab Network Shutdowns . | . . . . . Hacking | -11 -10 -10 -10 -9 --------- Run | Scr Mat Min Exi Min Machines Accessed 7 | . 4 . 3 . Terminals 3 | . 3 . . . Fabricators . | . . . . . Repair Stations . | . . . . . Recycling Units 1 | . 1 . . . Scanalyzers . | . . . . . Garrison Access . | . . . . . Total Hacks 17 | . 13 . 4 . Successful 15 | . 11 . 4 . Failed 2 | . 2 . . . Catastrophic 1 | . 1 . . . Database Lockouts . | . . . . . Manual 8 | . 7 . 1 . Terminals 11 | . 11 . . . Fabricators . | . . . . . Repair Stations . | . . . . . Recycling Units 2 | . 2 . . . Scanalyzers . | . . . . . Garrison Access . | . . . . . Terminal Hacks 8 | . 4 . 4 . Record 3 | . . . 3 . Locate Traps 2 | . 2 . . . Hauler Manifests 1 | . 1 . . . Zone Layout 1 | . 1 . . . EX-Prototype ID Bank 1 | . . . 1 . Fabricator Hacks . | . . . . . Repair Station Hacks . | . . . . . Recycling Unit Hacks . | . . . . . Scanalyzer . | . . . . . Garrison Access Hacks . | . . . . . Unauthorized Hacks 7 | . 7 . . . Terminals 5 | . 5 . . . Track 2 | . 2 . . . Botnet 3 | . 3 . . . Fabricators . | . . . . . Repair Stations . | . . . . . Recycling Units 2 | . 2 . . . Monitor 1 | . 1 . . . Mask 1 | . 1 . . . Scanalyzers . | . . . . . Garrison Access . | . . . . . Data Cores Recovered . | . . . . . Used . | . . . . . Hacking Detections 3 | . 3 . . . Full Trace Events . | . . . . . Feedback Events . | . . . . . Feedback Blocked . | . . . . . Robot Schematics Acquired . | . . . . . Robots Built . | . . . . . Matter . | . . . . . Time . | . . . . . Total Robot Build Rating . | . . . . . Part Schematics Acquired . | . . . . . Parts Built . | . . . . . Matter . | . . . . . Time . | . . . . . Total Part Build Rating . | . . . . . Parts Repaired . | . . . . . Time . | . . . . . Parts Recycled . | . . . . . Recycled Matter . | . . . . . Retrieved Matter . | . . . . . Retrieved Components . | . . . . . Parts Scanalyzed . | . . . . . Part Schematics Acquired . | . . . . . Parts Damaged . | . . . . . Bothacking | -11 -10 -10 -10 -9 ------------ Run | Scr Mat Min Exi Min Used RIF Installer . | . . . . . Robots Hacked . | . . . . . Non-combat . | . . . . . Combat . | . . . . . Robot Hacks Applied . | . . . . . Relay Couplers Released . | . . . . . Robots Rewired . | . . . . . Allies Hacked . | . . . . . Hacks Repelled . | . . . . . Allies | -11 -10 -10 -10 -9 -------- Run | Scr Mat Min Exi Min Total Allies . | . . . . . Largest Group . | . . . . . Highest-Rated Group . | . . . . . Highest-Rated Ally . | . . . . . Total Orders . | . . . . . Ally Attacks . | . . . . . Total Damage . | . . . . . Kills . | . . . . . Allies Corrupted . | . . . . . Allies Melted . | . . . . . Intel | -11 -10 -10 -10 -9 ------- Run | Scr Mat Min Exi Min Robot Analysis Total . | . . . . . Derelict Logs Recovered 3 | . . 2 . 1 Drone Launches . | . . . . . Drone Recoveries . | . . . . . Exploration | -11 -10 -10 -10 -9 ------------- Run | Scr Mat Min Exi Min Turns Passed 2056 | 109 542 404 849 152 Spaces Moved 1273 | 66 338 246 528 95 Core 6 | 6 . . . . Treads . | . . . . . Legs 899 | 60 161 55 528 95 Wheels 368 | . 177 191 . . Hover . | . . . . . Flight . | . . . . . Fastest Speed 50 | 50 100 100 150 150 Average Speed 133 | 113 123 111 150 150 Slowest Speed 150 | 120 150 150 150 150 Overloaded Moves . | . . . . . Propulsion Burnouts . | . . . . . Robots Hopped . | . . . . . Cave-ins Triggered . | . . . . . Exploration Rate (%) 43 | 4 48 41 91 31 Regions Visited 4 Branch Regions 3 Pre-discovered Areas . | . . . . . Known Exits Taken . | . . . . . Unknown Exits Taken 4 | 1 1 1 1 . Scrap Searched 2 | . . 1 . 1 Spaces Dug . | . . . . . Terrain Destroyed 13 | . . . . 13 Melee . | . . . . . Projectile . | . . . . . AOE 13 | . . . . 13 Actions | -11 -10 -10 -10 -9 --------- Run | Scr Mat Min Exi Min Total 1511 | 86 417 322 588 98 Wait 76 | 3 15 8 49 1 Move 1269 | 65 337 245 527 95 Hop . | . . . . . Pick Up 31 | 4 15 9 3 . Fast Attach 18 | 8 4 5 1 . Attach 9 | . 4 5 . . Detach . | . . . . . Swap 10 | . 4 4 2 . Drop 29 | 1 12 10 6 . Fire 69 | 5 26 36 . 2 Melee . | . . . . . Ram . | . . . . . Kick . | . . . . . Crush . | . . . . . Escape Stasis . | . . . . . Rewire . | . . . . . Trap . | . . . . . Miscellaneous . | . . . . . Route ------- -11/Scrapyard -10/Materials (discovered 2 exits: [*Mat] / [*Min]) -10/Mines (discovered 2 exits: [*Mat] / *Exi) -10/Exiles -9/Mines History --------- Turn | Location | Event 7 | -11/Scrapyard | Discovered new exit (range 16) 110 | -11/Scrapyard | Entered Materials 298 | -10/Materials | Discovered new exit (range 6) 314 | -10/Materials | Build established: Mutant 562 | -10/Materials | Discovered new exit (range 12) 652 | -10/Materials | Entered Mines 657 | -10/Mines | Met a Derelict bent on vengeance 719 | -10/Mines | Lost 4 parts (1p1n2w) 723 | -10/Mines | Found a hidden stash of uninstalled traps 762 | -10/Mines | Learned Materials machine intel 833 | -10/Mines | Discovered new exit (range 10) 961 | -10/Mines | Learned 2 Materials zone layouts 1050 | -10/Mines | Deemed a non-threat by the Exiles lab entrance 1050 | -10/Mines | Discovered new exit (range 5) 1056 | -10/Mines | Entered Exiles 1091 | -10/Exiles | Met 8R-AWN 1106 | -10/Exiles | Build established: Scavenger-Mutant 1118 | -10/Exiles | Met EX-HEX 1181 | -10/Exiles | Met EX-DEC 1209 | -10/Exiles | Visited The Gauntlet 1525 | -10/Exiles | Met EX-BIN 1631 | -10/Exiles | Aligned with FarCom system 1633 | -10/Exiles | Given EX-Vault access code 1667 | -10/Exiles | Opened EX-Vault 1681 | -10/Exiles | Found YOLO Cannon 1688 | -10/Exiles | Found Potential Leg 1692 | -10/Exiles | Found Potential Leg 1697 | -10/Exiles | Found Chronowheel 1727 | -10/Exiles | Warned to stay clear of 0b10 Research branches 1737 | -10/Exiles | Exiles lab attacked by MAIN.C 1832 | -10/Exiles | Discovered new exit (range 10) 1905 | -10/Exiles | Stole three prototypes: YOLO Cannon, Potential Leg, Chronowheel 1905 | -10/Exiles | Entered Mines 1959 | -9/Mines | Assembled infested the area 2033 | -9/Mines | Learned Materials garrison access intel 2057 | -9/Mines | Self-destructed Last Messages --------------- 01912_ G-47 Trooper unfolds itself. 01912_ G-34 Mercenary unfolds itself. 01912_ G-47 Trooper destroyed. 01912_ G-34 Mercenary destroyed. 01916_ Destroyed Heat Sink. 01916_ Destroyed Aluminum Leg. 01916_ Ion Engine melted. 01916_ G-34 Mercenary destroyed. 01921_ W1-DM0: "Oh no, it's like what happened to the Exiles when they were wandering homeless, only there's no Warlord to save us!" 01950_ K-01 Serf collects debris. 01959_ ALERT: Infestation in the mines, dispatching Demolisher response squad. 01964_ K-01 Serf collects debris. 02033_ Acquired derelict log, extracted data. Data stored: Materials garrison access intel. 02039_ Searching scrap... 02039_ Found 31 Matter. 02039_ Found Seismic Analyzer. 02040_ Acquired 30 matter. Map ----- +----------------------------------------------------+ | ??# ### ##?????# #???? | | ### #?????# #???? | | #????# #???? | | #???# #???? | | ## #???# #???? | | ### ## ## ##???# #???? | | #?## ######## ##??### #???? | | ##??####??????# ##???# #???? | | ?????????????? ##????# #???? | | ?????????????? ##?????# ##???? | | ?????????????? #?????## #????? | | ??????????????### #?????# #????? | | ????????????????? #?????# ##????? | | ????????????????? #?????# !#?????? | | ?????????????????###?????# %#?????? | | ?????????????????????????# #?????? | | ?????????????????????????# #?????? | | ?????????????????????????# #?????? | | ?????????????????????????# #?????? | | ?????????????????????????# #?????? | | ?????????????????????????# #?????? | | ?????????????????????????# #?????? | | ???????????????????????### #?????? | | ??????????????????????## #?????? | | ??????????????????????# ##????? | | ??????????????????????# @ #????? | | ??????????????????????# #??? | | ??????????????????????#### #?? | | ?????????????????????????## #?? | | ???????????????????????????# ##?? | | ????????????????????????????####??? | | ??????????????????????????????????? | | ??????????????????????????????????? | | ??????????????????????????????????? | | ??????????????????????????????????? | | ??????????????????????????????????? | | ??????????????????????????????????? | | ??????????????????????????????????? | | | | | | | | | | | | | | | | | | | | | | | | | +----------------------------------------------------+ Best States ------------- Heat Dissipation 39 Energy Generation 14 Energy Capacity 250 Matter Stores 300 Matter Capacity 300 Sight Range 16 Terrain Scan Range 16 Terrain Scan Density 10 Evasion (%) 40 Item Schematics ----------------- None Robot Schematics ------------------ None Fabricated ------------ Nothing Alien Tech Used ----------------- None Achievements -------------- None Challenges ------------ None Game ------ Seed ReactionChainMachine Manual? 0 Play Time 00:23:55 Cumulative 40.1 hours Start 2020.05.15 @ 08:36:34 End 2020.05.18 @ 08:56:44 Sessions 3 Manual Loads 0 Difficulty Rogue Special Mode None Game No. 19 Rogue 19 Adventurer 0 Explorer 0 Win Type - Total 3 Types 2/0/0/1/0/0/0 Lore% 47 Gallery% 47 Achievement% 42 Wizard Run 0 Options --------- ASCII 1 Keyboard 0 Movement Numpad Keybinds 0 Fullscreen 1 Font 18/SmallcapsGlow Map View 76x50 Tactical HUD 1 Map Filters NONE Filters NONE Steam 1 RUN: 6bdfa873-cc7d-46cb-81ed-317951256fc4